fUST/lending_fUST_20250610
["ID","MTS","AMOUNT","RATE_DAILY","PERIOD"]
[365205368,1749533434135,-440.0,0.00021095,4]
[365205369,1749533434144,-460.0,0.00021095,4]
[365205370,1749533434153,-401.12826836,0.00021095,4]
[365205371,1749533434162,-460.0,0.00021095,4]
[365205372,1749533434172,-448.42795298,0.00021095,4]
[365205373,1749533434181,-440.0,0.00021095,4]
[365205374,1749533434190,-306.94583827,0.00021095,4]
[365205375,1749533434200,-277.51774492,0.00021095,4]
[365205376,1749533434209,-434.68825674,0.00021095,4]
[365205377,1749533434219,-440.0,0.00021095,4]
[365205378,1749533434228,-440.0,0.00021095,4]
[365205379,1749533434239,-433.7112932,0.00021095,4]
[365205380,1749533434250,-496.07878964,0.00021095,4]
[365205381,1749533434260,-463.88375104,0.00021095,4]
[365205382,1749533434269,-591.66802904,0.00021095,4]
[365205383,1749533434280,-436.31756672,0.00021095,4]
[365205384,1749533434291,-333.53226434,0.00021095,4]
[365205385,1749533434301,-440.0,0.00021095,4]
[365205386,1749533434311,-350.53542552,0.00021095,4]
[365205387,1749533434323,-440.0,0.00021095,4]
[365205388,1749533434336,-440.27537075,0.00021095,4]
[365205389,1749533434346,-586.23171631,0.00021095,4]
[365205390,1749533434356,-440.0,0.00021095,4]
[365205391,1749533434366,-430.0,0.00021095,4]
[365205392,1749533434375,-460.0,0.00021095,4]
[365205393,1749533434385,-411.52394139,0.00021095,4]
[365205394,1749533434394,-555.1179157,0.00021095,4]
[365205395,1749533434404,-460.0,0.00021095,4]
[365205396,1749533434413,-440.63288343,0.00021095,4]
[365205397,1749533434423,-461.0897379,0.00021095,4]
[365205398,1749533434433,-440.0,0.00021095,4]
[365205399,1749533434443,-415.5630196,0.00021095,4]
[365205400,1749533434452,-414.25194615,0.00021095,4]
[365205401,1749533434462,-440.0,0.00021095,4]
[365205402,1749533434474,-440.0,0.00021095,4]
[365205403,1749533434483,-440.0,0.00021095,4]
[365205404,1749533434493,-440.0,0.00021095,4]
[365205405,1749533434502,-430.0,0.00021095,4]
[365205406,1749533434511,-430.0,0.00021095,4]
[365205407,1749533434520,-450.14417739,0.00021095,4]
[365205408,1749533434529,-437.75205103,0.00021095,4]
[365205409,1749533434538,-451.21577025,0.00021095,4]
[365205410,1749533434546,-436.48100671,0.00021095,4]
[365205411,1749533434555,-443.57869736,0.00021095,4]
[365205412,1749533434564,-440.0,0.00021095,4]
[365205413,1749533434573,-160.46567317,0.00021095,4]
[365205414,1749533434582,-440.0,0.00021095,4]
[365205415,1749533434591,-440.0,0.00021095,4]
[365205416,1749533434600,-442.70936314,0.00021095,4]
[365205417,1749533434609,-441.76069082,0.00021095,4]
[365205418,1749533434619,-451.44890983,0.00021095,4]
[365205419,1749533434629,-440.0,0.00021095,4]
[365205420,1749533434638,-440.0,0.00021095,4]
[365205421,1749533434647,-500.37940642,0.00021095,4]
[365205422,1749533434656,-440.0,0.00021095,4]
[365205423,1749533434665,-440.0,0.00021095,4]
[365205424,1749533434675,-164.93182245,0.00021095,4]
[365205425,1749533434684,-440.0,0.00021095,4]
[365205426,1749533434693,-440.0,0.00021095,4]
[365205427,1749533434809,-430.0,0.00021095,4]
[365205428,1749533434820,-443.86140056,0.00021095,4]
[365205429,1749533434830,-471.11391125,0.00021095,4]
[365205430,1749533434841,-440.0,0.00021095,4]
[365205431,1749533434852,-440.0,0.00021095,4]
[365205432,1749533434861,-430.0,0.00021095,4]
[365205433,1749533434871,-420.0,0.00021095,4]
[365205434,1749533434880,-440.0,0.00021095,4]
[365205435,1749533434889,-440.0,0.00021095,4]
[365205436,1749533434898,-431.72028285,0.00021095,4]
[365205437,1749533434908,-440.0,0.00021095,4]
[365205438,1749533434917,-430.0,0.00021095,4]
[365205439,1749533434926,-440.0,0.00021095,4]
[365205440,1749533434935,-436.83587897,0.00021095,4]
[365205441,1749533434945,-440.0,0.00021095,4]
[365205442,1749533434954,-446.03800146,0.00021095,4]
[365205443,1749533434963,-440.0,0.00021095,4]
[365205444,1749533434972,-430.0,0.00021095,4]
[365205445,1749533434981,-176.26660126,0.00021095,4]
[365205446,1749533434991,-440.0,0.00021095,4]
[365205447,1749533435000,-430.0,0.00021095,4]
[365205448,1749533435009,-246.333005,0.00021095,4]
[365205449,1749533435019,-440.0,0.00021095,4]
[365205450,1749533435028,-454.72463154,0.00021095,4]
[365205451,1749533435037,-442.4318229,0.00021095,4]
[365205452,1749533435046,-433.25602293,0.00021095,4]
[365205453,1749533435055,-430.0,0.00021095,4]
[365205454,1749533435065,-440.0,0.00021095,4]
[365205455,1749533435074,-458.05547712,0.00021095,4]
[365205456,1749533435083,-444.991446,0.00021095,4]
[365205457,1749533435092,-461.09574624,0.00021095,4]
[365205458,1749533435101,-476.33522517,0.00021095,4]
[365205459,1749533435110,-330.02920689,0.00021095,4]
[365205460,1749533435119,-451.14544927,0.00021095,4]
[365205461,1749533435127,-500.0,0.00021095,4]
[365205462,1749533435136,-440.0,0.00021095,4]
[365205463,1749533435145,-440.0,0.00021095,4]
[365205464,1749533435154,-211.72117442,0.00021095,4]
[365205465,1749533435163,-440.0,0.00021095,4]
[365205466,1749533435172,-440.0,0.00021095,4]
[365205467,1749533435181,-440.0,0.00021095,4]
[365205468,1749533435191,-430.0,0.00021095,4]
[365205469,1749533435200,-440.0,0.00021095,4]
[365205470,1749533435209,-455.38811728,0.00021095,4]
[365205471,1749533435218,-453.30905075,0.00021095,4]
[365205472,1749533435227,-440.0,0.00021095,4]
[365205473,1749533435236,-440.0,0.00021095,4]
[365205474,1749533435250,-435.52063828,0.00021095,4]
[365205475,1749533435263,-440.0,0.00021095,4]
[365205476,1749533435275,-440.0,0.00021095,4]
[365205477,1749533435285,-440.0,0.00021095,4]
[365205478,1749533435297,-446.73904232,0.00021095,4]
[365205479,1749533435308,-440.0,0.00021095,4]
[365205480,1749533435322,-438.38422215,0.00021095,4]
[365205481,1749533435335,-440.0,0.00021095,4]
[365205482,1749533435348,-311.69593557,0.00021095,4]
[365205483,1749533435359,-444.46449657,0.00021095,4]
[365205484,1749533435371,-430.0,0.00021095,4]
[365205485,1749533435383,-430.0,0.00021095,4]
[365205486,1749533435394,-430.0,0.00021095,4]
[365205487,1749533435404,-460.0,0.00021095,4]
[365205488,1749533435414,-471.29496678,0.00021095,4]
[365205489,1749533435426,-440.0,0.00021095,4]
[365205490,1749533435437,-444.32006626,0.00021095,4]
[365205491,1749533435449,-470.72934603,0.00021095,4]
[365205492,1749533435458,-476.53930188,0.00021095,4]
[365205493,1749533435468,-440.0,0.00021095,4]
[365205494,1749533435478,-449.83451187,0.00021095,4]
[365205495,1749533435490,-440.0,0.00021095,4]
[365205496,1749533435501,-352.7812313,0.00021095,4]
[365205497,1749533435511,-364.55914982,0.00021095,4]
[365205498,1749533435522,-415.77934197,0.00021095,4]
[365205499,1749533435531,-460.0,0.00021095,4]
[365205500,1749533435541,-420.0,0.00021095,4]
[365205501,1749533435553,-440.0,0.00021095,4]
[365205502,1749533435564,-351.75691459,0.00021095,4]
[365205503,1749533435575,-447.97283954,0.00021095,4]
[365205504,1749533435586,-429.96511487,0.00021095,4]
[365205505,1749533435595,-440.0,0.00021095,4]
[365205506,1749533435604,-440.0,0.00021095,4]
[365205507,1749533435614,-399.59797673,0.00021095,4]
[365205508,1749533435622,-430.0,0.00021095,4]
[365205509,1749533435631,-460.0,0.00021095,4]
[365205510,1749533435640,-440.0,0.00021095,4]
[365205511,1749533435649,-440.0,0.00021095,4]
[365205512,1749533435657,-430.0,0.00021095,4]
[365205513,1749533435666,-440.0,0.00021095,4]
[365205514,1749533435675,-440.0,0.00021095,4]
[365205515,1749533435683,-460.0,0.00021095,4]
[365205516,1749533435692,-440.0,0.00021095,4]
[365205517,1749533435701,-582.20992685,0.00021095,4]
[365205518,1749533435710,-440.0,0.00021095,4]
[365205519,1749533435718,-247.31433663,0.00021095,4]
[365205520,1749533435727,-440.0,0.00021095,4]
[365205521,1749533435736,-440.0,0.00021095,4]
[365205522,1749533435745,-440.77564954,0.00021095,4]
[365205523,1749533435753,-440.0,0.00021095,4]
[365205524,1749533435762,-479.47318213,0.00021095,4]
[365205525,1749533435771,-460.0,0.00021095,4]
[365205526,1749533435781,-430.0,0.00021095,4]
[365205527,1749533435789,-430.0,0.00021095,4]
[365205528,1749533435798,-472.00099326,0.00021095,4]
[365205529,1749533435808,-430.0,0.00021095,4]
[365205530,1749533435817,-453.57373741,0.00021095,4]
[365205531,1749533435826,-460.0,0.00021095,4]
[365205532,1749533435835,-500.0,0.00021095,4]
[365205533,1749533435844,-500.0,0.00021095,4]
[365205534,1749533435853,-500.0,0.00021095,4]
[365205535,1749533435862,-500.0,0.00021095,4]
[365205536,1749533435872,-500.0,0.00021095,4]
[365205537,1749533435881,-500.0,0.00021095,4]
[365205538,1749533435890,-259.40750686,0.00021095,4]
[365205539,1749533435899,-500.0,0.00021095,4]
[365205540,1749533435908,-500.0,0.00021095,4]
[365205541,1749533435917,-440.0,0.00021095,4]
[365205542,1749533435926,-530.62294487,0.00021095,4]
[365205543,1749533435935,-451.49598439,0.00021095,4]
[365205544,1749533435944,-1118.98,0.00021095,4]
[365205545,1749533435953,-464.70102688,0.00021095,4]
[365205546,1749533435963,-487.860541,0.00021095,4]
[365205547,1749533435972,-440.0,0.00021095,2]
[365205548,1749533435981,-430.0,0.00021095,4]
[365205549,1749533435990,-476.94266474,0.00021095,4]
[365205550,1749533435999,-304.41293349,0.00021095,4]
[365205551,1749533436009,-427.59389987,0.00021095,4]
[365205552,1749533436018,-430.0,0.00021095,4]
[365205553,1749533436027,-460.0,0.00021095,4]
[365205554,1749533436036,-443.2000256,0.00021095,4]
[365205555,1749533436045,-430.0,0.00021095,4]
[365205556,1749533436054,-440.0,0.00021095,4]
[365205557,1749533436064,-440.0,0.00021095,4]
[365205558,1749533436073,-460.0,0.00021095,4]
[365205559,1749533436083,-756.69,0.00021095,4]
[365205560,1749533436092,-499.21058069,0.00021095,4]
[365205561,1749533436102,-491.90368861,0.00021095,4]
[365205562,1749533436112,-395.68178614,0.00021095,4]
[365205563,1749533436121,-445.64144019,0.00021095,4]
[365205564,1749533436131,-430.0,0.00021095,4]
[365205565,1749533436141,-465.28272682,0.00021095,4]
[365205566,1749533436150,-360.0,0.00021095,4]
[365205567,1749533436159,-430.0,0.00021095,4]
[365205568,1749533436168,-480.83369344,0.00021095,4]
[365205569,1749533436177,-460.0,0.00021095,4]
[365205570,1749533436186,-475.30548369,0.00021095,4]
[365205571,1749533436196,-460.0,0.00021095,4]
[365205572,1749533436205,-439.46211676,0.00021095,4]
[365205573,1749533436214,-449.9379605,0.00021095,4]
[365205574,1749533436224,-460.0,0.00021095,4]
[365205575,1749533436233,-440.0,0.00021095,4]
[365205576,1749533436243,-4018.29,0.00021095,4]
[365205577,1749533436257,-441.63940902,0.00021095,4]
[365205578,1749533436266,-583.61751202,0.00021095,4]
[365205579,1749533436276,-452.69809746,0.00021095,4]
[365205580,1749533436285,-440.0,0.00021095,4]
[365205581,1749533436296,-883.61,0.00021095,4]
[365205582,1749533436305,-430.0,0.00021095,4]
[365205583,1749533436314,-440.0,0.00021095,4]
[365205584,1749533436323,-440.0,0.00021095,4]
[365205585,1749533436334,-579.18280077,0.00021095,4]
[365205586,1749533436344,-845.19,0.00021095,4]
[365205587,1749533436353,-440.0,0.00021095,4]
[365205588,1749533436362,-440.0,0.00021095,4]
[365205589,1749533436371,-180.0,0.00021095,4]
[365205590,1749533436381,-440.0,0.00021095,4]
[365205591,1749533436390,-460.0,0.00021095,4]
[365205592,1749533436399,-462.688423,0.00021095,4]
[365205593,1749533436408,-402.91303918,0.00021095,4]
[365205594,1749533436417,-460.0,0.00021095,4]
[365205595,1749533436426,-440.0,0.00021095,4]
[365205596,1749533436436,-460.0,0.00021095,4]
[365205597,1749533436445,-373.75193433,0.00021095,4]
[365205598,1749533436454,-670.24,0.00021095,4]
[365205599,1749533436462,-460.0,0.00021095,4]
[365205600,1749533436471,-440.0,0.00021095,4]
[365205601,1749533436480,-957.03,0.00021095,4]
[365205602,1749533436489,-420.0,0.00021095,4]
[365205603,1749533436498,-443.36372963,0.00021095,4]
[365205604,1749533436507,-411.0509089,0.00021095,4]
[365205605,1749533436517,-1111.24,0.00021095,4]
[365205606,1749533436526,-430.0,0.00021095,4]
[365205607,1749533436536,-946.03,0.00021095,4]
[365205608,1749533436546,-460.0,0.00021095,4]
[365205609,1749533436556,-440.0,0.00021095,4]
[365205610,1749533436566,-460.0,0.00021095,4]
[365205611,1749533436576,-460.0,0.00021095,4]
[365205612,1749533436586,-424.94624915,0.00021095,4]
[365205613,1749533436596,-460.0,0.00021095,4]
[365205614,1749533436605,-440.0,0.00021095,4]
[365205615,1749533436614,-442.64852252,0.00021095,4]
[365205616,1749533436622,-460.0,0.00021095,4]
[365205617,1749533436631,-440.0,0.00021095,4]
[365205618,1749533436640,-460.0,0.00021095,4]
[365205619,1749533436649,-374.13655953,0.00021095,4]
[365205620,1749533436658,-430.0,0.00021095,4]
[365205621,1749533436667,-440.0,0.00021095,4]
[365205622,1749533436678,-447.35000557,0.00021095,4]
[365205623,1749533436687,-440.0,0.00021095,4]
[365205624,1749533436696,-500.0,0.00021095,4]
[365205625,1749533436705,-2112.04,0.000211,2]
[365205626,1749533436714,-500.0,0.000212,2]
[365205627,1749533436722,-299.38922886,0.00021369,4]
[365205628,1749533436731,-327.17207669,0.00021369,4]
[365205629,1749533436739,-420.0,0.00021369,4]
[365205630,1749533436748,-503.5388673,0.00021369,4]
[365205631,1749533436756,-460.0,0.00021369,4]
[365205632,1749533436765,-460.0,0.00021369,4]
[365205633,1749533436774,-460.0,0.00021369,4]
[365205634,1749533436782,-460.0,0.00021369,4]
[365205635,1749533436791,-460.0,0.00021369,4]
[365205636,1749533436801,-460.0,0.00021369,4]
[365205637,1749533436810,-1118.98,0.00021369,4]
[365205638,1749533436819,-460.0,0.00021369,4]
[365205639,1749533436827,-440.0,0.00021369,4]
[365205640,1749533436836,-756.69,0.00021369,4]
[365205641,1749533436845,-219.0,0.00021369,4]
[365205642,1749533436854,-360.0,0.00021369,4]
[365205643,1749533436863,-4018.29,0.00021369,4]
[365205644,1749533436872,-883.61,0.00021369,4]
[365205645,1749533436881,-845.19,0.00021369,4]
[365205646,1749533436890,-236.07649988,0.00021369,4]
[365205647,1749533436899,-440.0,0.00021369,4]
[365205648,1749533436907,-670.24,0.00021369,4]
[365205649,1749533436916,-440.0,0.00021369,4]
[365205650,1749533436925,-957.03,0.00021369,4]
[365205651,1749533436933,-1111.24,0.00021369,4]
[365205652,1749533436942,-946.03,0.00021369,4]
[365205653,1749533436951,-460.0,0.00021369,4]
[365205654,1749533436959,-460.0,0.00021369,4]
[365205655,1749533436968,-460.0,0.00021369,4]
[365205656,1749533436977,-460.0,0.00021369,4]
[365205657,1749533436986,-223.85,0.00021369,4]
[365205658,1749533436994,-340.0,0.00021369,4]
[365205659,1749533437003,-394.99,0.000215,2]
[365205660,1749533437011,-1000.0,0.00021621,2]
[365205661,1749533437021,-500.0,0.00021642,4]
[365205662,1749533437030,-460.0,0.00021643,4]
[365205663,1749533437038,-460.0,0.00021643,4]
[365205664,1749533437047,-460.0,0.00021643,4]
[365205665,1749533437056,-460.0,0.00021643,4]
[365205666,1749533437065,-460.0,0.00021643,4]
[365205667,1749533437074,-460.0,0.00021643,4]
[365205668,1749533437084,-1118.98,0.00021643,4]
[365205669,1749533437093,-460.0,0.00021643,4]
[365205670,1749533437102,-756.69,0.00021643,4]
[365205671,1749533437110,-4018.29,0.00021643,4]
[365205672,1749533437119,-883.61,0.00021643,4]
[365205673,1749533437128,-845.19,0.00021643,4]
[365205674,1749533437137,-670.24,0.00021643,4]
[365205675,1749533437146,-957.03,0.00021643,4]
[365205676,1749533437155,-1111.24,0.00021643,4]
[365205677,1749533437164,-946.03,0.00021643,4]
[365205678,1749533437172,-440.0,0.00021643,4]
[365205679,1749533437181,-460.0,0.00021643,4]
[365205680,1749533437190,-460.0,0.00021643,4]
[365205681,1749533437199,-460.0,0.00021643,4]
[365205682,1749533437208,-642.42820928,0.00021665,2]
[365205683,1749533437218,-500.000001,0.0002168,2]
[365205684,1749533437230,-5000.0,0.00021692,2]
[365205685,1749533437241,-213.1263252,0.0002172,2]
[365205686,1749533437254,-160.0,0.0002172,2]
[365205687,1749533437264,-834.9046531,0.0002172,2]
[365205688,1749533437273,-160.0,0.0002172,2]
[365205689,1749533437282,-229.6792923,0.0002172,2]
[365205690,1749533437291,-160.0,0.0002172,2]
[365205691,1749533437300,-842.5625,0.0002172,2]
[365205692,1749533437310,-424.12530924,0.0002172,2]
[365205693,1749533437320,-11858.11761888,0.0002172,2]
[365205694,1749533437330,-1000.0,0.000218,3]
[365205695,1749533437340,-1000.0,0.000218,4]
[365205696,1749533437349,-2663.0,0.0002181,7]
[365205697,1749533437358,-160.0,0.0002182,3]
[365205698,1749533437368,-500.0,0.00021916,4]
[365205699,1749533437376,-460.0,0.00021917,4]
[365205700,1749533437477,-460.0,0.00021917,4]
[365205701,1749533437487,-460.0,0.00021917,4]
[365205702,1749533437496,-236.45786302,0.00021917,4]
[365205703,1749533437505,-460.0,0.00021917,4]
[365205704,1749533437515,-460.0,0.00021917,4]
[365205705,1749533437525,-1118.98,0.00021917,4]
[365205706,1749533437534,-328.96,0.00021917,4]
[365205707,1749533437542,-756.69,0.00021917,4]
[365205708,1749533437551,-4018.29,0.00021917,4]
[365205709,1749533437560,-883.61,0.00021917,4]
[365205710,1749533437569,-845.19,0.00021917,4]
[365205711,1749533437579,-670.24,0.00021917,4]
[365205712,1749533437589,-957.03,0.00021917,4]
[365205713,1749533437599,-1111.24,0.00021917,4]
[365205714,1749533437609,-946.03,0.00021917,4]
[365205715,1749533437618,-460.0,0.00021917,4]
[365205716,1749533437628,-460.0,0.00021917,4]
[365205717,1749533437636,-460.0,0.00021917,4]
[365205718,1749533437646,-158.92284802,0.00022,2]
[365205719,1749533437660,-161.0,0.00022,2]
[365205720,1749533437669,-2663.0,0.00022044,7]
[365205721,1749533437678,-963.0,0.00022048,2]
[365205722,1749533437687,-3000.0,0.000221,2]
[365205723,1749533437695,-3000.0,0.0002211,2]
[365205724,1749533437707,-3000.0,0.0002212,2]
[365205725,1749533437716,-3000.0,0.0002213,2]
[365205726,1749533437725,-3000.0,0.0002214,2]
[365205727,1749533437733,-3000.0,0.0002215,2]
[365205728,1749533437742,-3000.0,0.0002216,2]
[365205729,1749533437751,-3000.0,0.0002217,2]
[365205730,1749533437759,-3000.0,0.0002218,2]
[365205731,1749533437768,-3000.0,0.0002219,2]
[365205732,1749533437776,-460.0,0.00022191,4]
[365205733,1749533437785,-460.0,0.00022191,4]
[365205734,1749533437794,-460.0,0.00022191,4]
[365205735,1749533437803,-460.0,0.00022191,4]
[365205736,1749533437813,-460.0,0.00022191,4]
[365205737,1749533437822,-1118.98,0.00022191,4]
[365205738,1749533437832,-756.69,0.00022191,4]
[365205739,1749533437841,-4018.29,0.00022191,4]
[365205740,1749533437850,-883.61,0.00022191,4]
[365205741,1749533437859,-845.19,0.00022191,4]
[365205742,1749533437869,-670.24,0.00022191,4]
[365205743,1749533437879,-957.03,0.00022191,4]
[365205744,1749533437888,-1111.24,0.00022191,4]
[365205745,1749533437898,-946.03,0.00022191,4]
[365205746,1749533437907,-460.0,0.00022191,4]
[365205747,1749533437917,-460.0,0.00022191,4]
[365205748,1749533437926,-460.0,0.00022191,4]
[365205749,1749533437936,-3000.0,0.000222,2]
[365205750,1749533437945,-2112.04,0.000222,7]
[365205751,1749533437955,-3000.0,0.0002221,2]
[365205752,1749533437964,-3000.0,0.0002222,2]
[365205753,1749533437974,-3000.0,0.0002223,2]
[365205754,1749533437983,-3000.0,0.0002224,2]
[365205756,1749533437992,-3000.0,0.0002225,2]
[365205758,1749533438002,-2878.0885611,0.00022259,2]
[365205760,1749533438011,-3000.0,0.0002226,2]
[365205762,1749533438020,-3000.0,0.0002227,2]
[365205763,1749533438030,-2663.0,0.00022278,7]
[365205764,1749533438040,-3000.0,0.0002228,2]
[365205765,1749533438049,-3000.0,0.0002229,2]
[365205767,1749533438059,-3000.0,0.000223,2]
[365205769,1749533438069,-3000.0,0.0002231,2]
[365205770,1749533438079,-4027.32094,0.0002232,2]
[365205771,1749533438089,-642.42820928,0.00022335,2]
[365205772,1749533438099,-207.4,0.00022359,2]
[365205773,1749533438109,-2013.0,0.00022455,3]
[365205774,1749533438119,-1201.9,0.00022455,3]
[365205775,1749533438128,-600.94,0.00022455,3]
[365205776,1749533438138,-300.48,0.00022455,3]
[365205777,1749533438148,-2160.0,0.00022459,2]
[365205778,1749533438157,-653.0,0.00022459,2]
[365205779,1749533438166,-278.722055,0.00022465,7]
[365205780,1749533438175,-379.58033034,0.00022465,4]
[365205781,1749533438184,-208.30805919,0.00022465,4]
[365205782,1749533438194,-460.0,0.00022465,4]
[365205783,1749533438203,-460.0,0.00022465,4]
[365205784,1749533438212,-460.0,0.00022465,4]
[365205786,1749533438221,-1118.98,0.00022465,4]
[365205788,1749533438230,-756.69,0.00022465,4]
[365205790,1749533438240,-4018.29,0.00022465,4]
[365205791,1749533438250,-883.61,0.00022465,4]
[365205792,1749533438260,-845.19,0.00022465,4]
[365205793,1749533438268,-670.24,0.00022465,4]
[365205794,1749533438278,-957.03,0.00022465,4]
[365205795,1749533438287,-1111.24,0.00022465,4]
[365205796,1749533438298,-946.03,0.00022465,4]
[365205797,1749533438307,-518.65377666,0.00022465,4]
[365205798,1749533438316,-460.0,0.00022465,4]
[365205799,1749533438327,-460.0,0.00022465,4]
[365205800,1749533438337,-153.8908305,0.00022504,2]
[365205801,1749533438346,-2663.0,0.00022513,7]
[365205802,1749533438356,-678.16615454,0.00022596,2]
[365205803,1749533438366,-500.0,0.000226,2]
[365205804,1749533438375,-465.294,0.00022628,2]
[365205805,1749533438385,-501.13731137,0.00022678,2]
[365205806,1749533438394,-500.53175671,0.00022678,2]
[365205807,1749533438403,-500.0,0.00022678,2]
[365205808,1749533438413,-460.0,0.00022739,4]
[365205809,1749533438421,-460.0,0.00022739,4]
[365205810,1749533438431,-586.75,0.00022739,4]
[365205811,1749533438440,-1118.98,0.00022739,4]
[365205812,1749533438449,-756.69,0.00022739,4]
[365205813,1749533438458,-4018.29,0.00022739,4]
[365205814,1749533438467,-883.61,0.00022739,4]
[365205815,1749533438476,-845.19,0.00022739,4]
[365205816,1749533438485,-670.24,0.00022739,4]
[365205817,1749533438494,-957.03,0.00022739,4]
[365205818,1749533438503,-1111.24,0.00022739,4]
[365205819,1749533438512,-946.03,0.00022739,4]
[365205820,1749533438521,-255.56027075,0.00022739,4]
[365205821,1749533438531,-460.0,0.00022739,4]
[365205822,1749533438540,-2663.0,0.00022747,7]
[365205823,1749533438549,-163.7222236,0.00022767,2]
[365205824,1749533438558,-506.31328295,0.0002278,2]
[365205825,1749533438567,-738.42,0.000228,5]
[365205826,1749533438576,-151.0,0.000228,9]
[365205827,1749533438586,-800.0,0.00022889,2]
[365205828,1749533438596,-225.60871679,0.00022902,2]
[365205829,1749533438605,-17213.79778849,0.0002295,7]
[365205830,1749533438614,-858.8105134,0.0002295,7]
[365205831,1749533439483,-3915.19309089,0.00019976,2]
[365205832,1749533439494,-295.52559255,0.00021027,2]
[365205833,1749533439556,-1135.20440745,0.00021027,2]
[365205834,1749533439567,-678.12940083,0.00021107,4]
[365205835,1749533439576,-678.12940083,0.00021279,5]
[365205836,1749533439588,-678.12940083,0.00021452,5]
[365205837,1749533439598,-678.12940083,0.00021624,5]
[365205838,1749533439607,-678.12940083,0.00021797,6]
[365205839,1749533439617,-678.12940083,0.00021969,6]
[365205840,1749533439627,-2146.09,0.00021983,2]
[365205841,1749533439636,-678.12940083,0.00022141,6]
[365205842,1749533439646,-890.64,0.0002221,10]
[365205843,1749533439655,-678.12940083,0.00022314,7]
[365205844,1749533439665,-678.12940083,0.00022486,7]
[365205845,1749533439675,-678.12940083,0.00022659,7]
[365205846,1749533439685,-678.12940083,0.00022831,8]
[365205847,1749533439694,-2861.46,0.00022938,2]
[365205848,1749533439704,-16354.98727509,0.0002295,7]
[365205849,1749533439714,-515.14269437,0.00022973,2]
[365205850,1749533439724,-500.0,0.00022973,2]
[365205851,1749533439733,-500.0,0.00022973,2]
[365205852,1749533439743,-600.0,0.00022973,2]
[365205853,1749533439753,-500.0,0.00022973,2]
[365205854,1749533439762,-500.0,0.00022973,2]
[365205855,1749533439771,-500.0,0.00022973,2]
[365205856,1749533439782,-500.0,0.00022973,2]
[365205857,1749533439792,-2663.0,0.00022981,7]
[365205858,1749533439802,-501.75429769,0.00022986,2]
[365205859,1749533439811,-200.06050339,0.00022986,2]
[365205860,1749533439821,-800.0,0.00022987,2]
[365205861,1749533439833,-982.28228312,0.00022989,2]
[365205862,1749533439943,-500.0,0.00022989,2]
[365205863,1749533439952,-500.0,0.00022989,2]
[365205864,1749533439962,-196.94214287,0.00022989,2]
[365205865,1749533439971,-503.17491512,0.00022989,2]
[365205866,1749533439981,-982.28228312,0.00022989,2]
[365205867,1749533439991,-500.0,0.00022989,2]
[365205869,1749533440000,-198.68935793,0.00022989,2]
[365205871,1749533440010,-625.10848271,0.00022989,2]
[365205873,1749533440019,-500.0,0.00022989,2]
[365205874,1749533440029,-982.28228312,0.00022989,2]
[365205876,1749533440039,-500.0,0.00022989,2]
[365205878,1749533440049,-500.0,0.00022989,2]
[365205881,1749533440058,-982.28228312,0.00022989,2]
[365205883,1749533440067,-500.0,0.00022989,2]
[365205884,1749533440077,-982.28228312,0.00022989,2]